bitfinex/quotes_BTCUSD_20250711
["timestamp","ask_amount","ask_price","bid_price","bid_amount"]
[1752199342478,1.75000124,115890.0,115880.0,0.01715153]
[1752199344151,1.75000124,115890.0,115880.0,0.00104968]
[1752199344909,2.0422738,115890.0,115880.0,0.00104968]
[1752199345064,1.6647738,115890.0,115880.0,0.00104968]
[1752199345269,1.5284538,115890.0,115880.0,0.00104968]
[1752199345536,2.0646538,115890.0,115880.0,0.00104968]
[1752199345924,1.6646538,115890.0,115880.0,0.00104968]
[1752199346848,1.12850868,115890.0,115880.0,0.00104968]
[1752199347054,1.39658124,115890.0,115880.0,0.00104968]
[1752199348000,1.34322201,115890.0,115880.0,0.00104968]
[1752199351000,0.91474945,115890.0,115880.0,0.00104968]
[1752199351182,0.91474945,115890.0,115880.0,0.34653024]
[1752199351183,0.66546473,115890.0,115880.0,0.34653024]
[1752199351384,0.66542473,115890.0,115880.0,0.34653024]
[1752199351586,1.01996558,115890.0,115880.0,0.07845768]
[1752199352538,0.88380558,115890.0,115880.0,0.07845768]
[1752199352746,1.01996558,115890.0,115880.0,0.07845768]
[1752199352971,1.05702453,115890.0,115880.0,0.07845768]
[1752199353176,1.01996558,115890.0,115880.0,0.07845768]
[1752199354439,1.02313558,115890.0,115880.0,0.07845768]
[1752199356416,1.01996558,115890.0,115880.0,0.07845768]
[1752199356824,0.34042993,115890.0,115880.0,0.34722024]
[1752199357057,0.27225676,115890.0,115880.0,0.34722024]
[1752199357266,0.28679761,115890.0,115880.0,0.34722024]
[1752199357465,0.29542633,115890.0,115880.0,0.34722024]
[1752199357664,0.46800437,115890.0,115880.0,0.07914768]
[1752199357837,0.46800437,115890.0,115880.0,0.34722024]
[1752199358415,0.46800437,115890.0,115880.0,0.48334024]
[1752199359349,0.46800437,115890.0,115880.0,0.48265024]
[1752199360999,0.28679806,115890.0,115880.0,0.48334024]
[1752199361400,0.29542604,115890.0,115880.0,0.48334024]
[1752199361574,0.30405483,115890.0,115880.0,0.21526768]
[1752199361777,0.29542604,115890.0,115880.0,0.48334024]
[1752199361981,0.30405476,115890.0,115880.0,0.48334024]
[1752199362180,0.30405476,115890.0,115880.0,0.21526768]
[1752199362384,0.30405528,115890.0,115880.0,0.48334024]
[1752199364425,0.27225684,115890.0,115880.0,0.48334024]
[1752199365064,0.28951427,115890.0,115880.0,0.48334024]
[1752199366448,0.28951427,115890.0,115880.0,0.49211637]
[1752199366646,0.28951427,115890.0,115880.0,0.48334024]
[1752199366857,0.28088592,115890.0,115880.0,0.48334024]
[1752199367286,0.43620623,115890.0,115880.0,0.48265024]
[1752199372270,0.45074708,115890.0,115880.0,0.07845768]
[1752199372491,0.97693962,115890.0,115880.0,0.00104968]
[1752199372708,1.45273962,115890.0,115880.0,0.00104968]
[1752199372921,1.47663962,115890.0,115880.0,0.03004768]
[1752199373135,1.48539055,115890.0,115880.0,0.03004768]
[1752199373345,1.75346311,115890.0,115880.0,0.03004768]
[1752199373550,1.48539055,115890.0,115880.0,0.03004768]
[1752199374296,1.48539055,115890.0,115880.0,0.00104968]
[1752199374516,1.48539055,115890.0,115880.0,0.03004768]
[1752199375491,1.75346311,115890.0,115880.0,0.00104968]
[1752199375733,1.5110089,115890.0,115880.0,0.03004768]
[1752199376379,1.5110089,115890.0,115880.0,0.00104968]
[1752199376586,1.5110089,115890.0,115880.0,0.03004768]
[1752199376809,1.9110089,115890.0,115880.0,0.00104968]
[1752199377012,1.9110089,115890.0,115880.0,0.03004768]
[1752199377213,1.9110089,115890.0,115880.0,0.00104968]
[1752199377638,1.9110089,115890.0,115880.0,0.03004768]
[1752199379590,1.88539055,115890.0,115880.0,0.03004768]
[1752199380664,1.81059254,115890.0,115880.0,0.00104968]
[1752199380872,1.81059254,115890.0,115880.0,0.03004768]
[1752199381091,1.81059254,115890.0,115880.0,0.00104968]
[1752199381314,1.81059254,115890.0,115880.0,0.03004768]
[1752199383469,1.81059254,115890.0,115880.0,0.00104968]
[1752199383686,1.81059254,115890.0,115880.0,0.03004768]
[1752199384151,1.81059254,115890.0,115880.0,0.00104968]
[1752199384374,1.81059254,115890.0,115880.0,0.03004768]
[1752199385185,1.83634386,115890.0,115880.0,0.03004768]
[1752199385746,1.43634386,115890.0,115880.0,0.03004768]
[1752199385962,1.52177379,115890.0,115880.0,0.03004768]
[1752199386171,1.43634386,115890.0,115880.0,0.03004768]
[1752199386369,1.43634386,115890.0,115880.0,0.02504768]
[1752199387033,1.41244386,115890.0,115880.0,0.02504768]
[1752199388739,1.11861998,115890.0,115880.0,0.02504768]
[1752199388935,1.38669254,115890.0,115880.0,0.02504768]
[1752199389986,1.87212247,115890.0,115880.0,0.02504768]
[1752199390382,0.18122179,115880.0,115870.0,0.15765044]
[1752199390586,0.40716172,115880.0,115870.0,0.13260276]
[1752199390727,0.40716172,115880.0,115870.0,0.15765044]
[1752199391111,0.49259165,115880.0,115870.0,0.15765044]
[1752199391554,0.49459165,115880.0,115870.0,0.15865044]
[1752199391754,0.74459165,115880.0,115870.0,0.15865044]
[1752199392579,0.65916172,115880.0,115870.0,0.13360276]
[1752199392807,0.65916172,115880.0,115870.0,0.15865044]
[1752199393172,0.65916172,115880.0,115870.0,0.13360276]
[1752199393378,0.65916172,115880.0,115870.0,0.15865044]
[1752199393587,0.65916172,115880.0,115870.0,0.13360276]
[1752199393801,0.65916172,115880.0,115870.0,0.15865044]
[1752199394003,0.65916172,115880.0,115870.0,0.18165044]
[1752199397403,0.3490291,115880.0,115870.0,0.18276044]
[1752199397611,0.2778872,115880.0,115870.0,0.586723]
[1752199397843,0.29514605,115880.0,115870.0,0.586723]
[1752199398484,0.30968682,115880.0,115870.0,0.586723]
[1752199398947,0.30105788,115880.0,115870.0,0.586723]
[1752199399152,0.30968749,115880.0,115870.0,0.586723]
[1752199400294,0.30105796,115880.0,115870.0,0.586723]
[1752199400645,0.30105796,115880.0,115870.0,0.586033]
[1752199401056,0.54267292,115880.0,115870.0,0.586033]
[1752199402159,0.53404368,115880.0,115870.0,0.586033]
[1752199404662,0.33556289,115880.0,115870.0,0.586033]
[1752199404980,0.37008,115880.0,115870.0,0.586723]
[1752199405474,0.37008,115880.0,115870.0,0.586033]
[1752199405693,0.36145046,115880.0,115870.0,0.586033]
[1752199405816,0.37007992,115880.0,115870.0,0.31865044]
[1752199406027,0.37870953,115880.0,115870.0,0.586723]
[1752199406261,0.43992241,115880.0,115870.0,0.31865044]
[1752199406461,0.37008044,115880.0,115870.0,0.586033]
[1752199407619,0.37871005,115880.0,115870.0,0.586033]
[1752199408035,0.37008044,115880.0,115870.0,0.586033]
[1752199410053,0.3614512,115880.0,115870.0,0.586033]
[1752199410261,0.53404353,115880.0,115870.0,0.586033]
[1752199410474,0.91862959,115880.0,115870.0,0.15865044]
[1752199410607,0.90710671,115880.0,115870.0,0.10980276]
[1752199410806,0.90710671,115880.0,115870.0,0.13485044]
[1752199411269,0.90710671,115880.0,115870.0,0.10980276]
[1752199411270,1.27140671,115880.0,115870.0,0.10980276]
[1752199411473,1.27140671,115880.0,115870.0,0.13485044]
[1752199411669,1.35683664,115880.0,115870.0,0.13485044]
[1752199413031,1.49191664,115880.0,115870.0,0.13485044]
[1752199413567,1.49191664,115880.0,115870.0,0.10980276]
[1752199414018,1.35683664,115880.0,115870.0,0.10980276]
[1752199414195,1.49191664,115880.0,115870.0,0.10980276]
[1752199414601,1.49191664,115880.0,115870.0,0.13485044]
[1752199414809,1.49191664,115880.0,115870.0,0.10980276]
[1752199415152,1.49191664,115880.0,115870.0,0.13485044]
[1752199415687,1.49191664,115880.0,115870.0,0.10980276]
[1752199416025,1.40648671,115880.0,115870.0,0.10980276]
[1752199416422,1.40648671,115880.0,115870.0,0.13485044]
[1752199417603,1.06939211,115880.0,115870.0,0.13485044]
[1752199418112,1.33746467,115880.0,115870.0,0.13485044]
[1752199418313,1.33746467,115880.0,115870.0,0.10980276]
[1752199418472,1.33746467,115880.0,115870.0,0.13485044]
[1752199418473,1.33734467,115880.0,115870.0,0.13485044]
[1752199418883,1.33734467,115880.0,115870.0,0.10980276]
[1752199419119,1.33734467,115880.0,115870.0,0.13485044]
[1752199420125,1.33734467,115880.0,115870.0,0.10980276]
[1752199420279,1.38693245,115880.0,115870.0,0.13485044]
[1752199421998,1.36263245,115880.0,115870.0,0.13485044]
[1752199422725,1.04497211,115880.0,115870.0,0.13485044]
[1752199422885,1.02191211,115880.0,115870.0,0.13485044]
[1752199423393,1.04551211,115880.0,115870.0,0.13485044]
[1752199424008,1.02191211,115880.0,115870.0,0.452333]
[1752199424219,1.02195211,115880.0,115870.0,0.18426044]
[1752199424471,1.01987211,115880.0,115870.0,0.452333]
[1752199424670,1.01987211,115880.0,115870.0,0.18426044]
[1752199426642,0.67678211,115880.0,115870.0,0.18426044]
[1752199426853,0.50418978,115880.0,115870.0,0.452333]
[1752199427061,0.269259,115880.0,115870.0,0.453023]
[1752199427271,0.26925848,115880.0,115870.0,0.453023]
[1752199427452,0.28379933,115880.0,115870.0,0.453023]
[1752199428268,0.29242887,115880.0,115870.0,0.453023]
[1752199429607,0.29242887,115880.0,115870.0,0.452333]
[1752199429972,0.4650212,115880.0,115870.0,0.452333]
[1752199430386,0.45639203,115880.0,115870.0,0.18426044]
[1752199430636,0.45639203,115880.0,115870.0,0.452333]
[1752199431345,0.44776272,115880.0,115870.0,0.18426044]
[1752199432000,0.45075272,115880.0,115870.0,0.452333]
[1752199432212,0.44776272,115880.0,115870.0,0.18426044]
[1752199433019,0.44776272,115880.0,115870.0,0.452333]
[1752199434091,0.44776272,115880.0,115870.0,0.18426044]
[1752199434282,0.44776272,115880.0,115870.0,0.452333]
[1752199434486,0.26062909,115880.0,115870.0,0.452333]
[1752199434664,0.252,115880.0,115870.0,0.453023]
[1752199434861,0.252,115880.0,115870.0,0.46192724]
[1752199435876,0.252,115880.0,115870.0,0.52367033]
[1752199436889,0.002,115880.0,115870.0,0.52367033]
[1752199437298,0.002,115880.0,115870.0,1.21717282]
[1752199437552,0.31907166,115890.0,115880.0,0.07214768]
[1752199437812,0.06907166,115890.0,115880.0,0.89207848]
[1752199438196,0.06907166,115890.0,115880.0,0.83036273]
[1752199438394,0.06907166,115890.0,115880.0,0.62396184]
[1752199438594,0.06907166,115890.0,115880.0,0.62596184]
[1752199438848,0.07007166,115890.0,115880.0,0.62596184]
[1752199438989,0.07007166,115890.0,115880.0,0.62896184]
[1752199440274,0.07007166,115890.0,115880.0,0.36088928]
[1752199440471,0.07007166,115890.0,115880.0,0.62896184]
[1752199440674,0.07007166,115890.0,115880.0,0.54353191]
[1752199441032,0.07007166,115890.0,115880.0,0.27545935]
[1752199441371,0.07007166,115890.0,115880.0,0.54353191]
[1752199441676,0.07007166,115890.0,115880.0,0.27545935]
[1752199441877,0.07007166,115890.0,115880.0,0.40800191]
[1752199442035,0.09595706,115890.0,115880.0,0.54288191]
[1752199442243,0.09595699,115890.0,115880.0,0.54288191]
[1752199442497,0.09595699,115890.0,115880.0,0.48121024]
[1752199442732,0.08732842,115890.0,115880.0,0.48121024]
[1752199442902,0.33732835,115890.0,115880.0,0.48121024]
[1752199443101,0.33732835,115890.0,115880.0,0.54288191]
[1752199443424,0.33732835,115890.0,115880.0,0.07825768]
[1752199443425,0.35458556,115890.0,115880.0,0.07825768]
[1752199443624,0.35757556,115890.0,115880.0,0.21329768]
[1752199444042,0.35757548,115890.0,115880.0,0.07825768]
[1752199444271,0.35757593,115890.0,115880.0,0.21321768]
[1752199444476,0.58257144,115890.0,115880.0,0.0288]
[1752199444683,0.69120137,115890.0,115880.0,0.16500768]
[1752199444880,0.9062598,115890.0,115880.0,0.16508768]
[1752199445098,0.63818724,115890.0,115880.0,0.16508768]
[1752199445967,0.63818724,115890.0,115880.0,0.14004]
[1752199446186,0.63818724,115890.0,115880.0,0.16508768]
[1752199446896,0.77322724,115890.0,115880.0,0.16508768]
[1752199447298,0.9062598,115890.0,115880.0,0.005]
[1752199447500,1.15050973,115890.0,115880.0,0.03004768]
[1752199448411,1.14950973,115890.0,115880.0,0.02804768]
[1752199448812,1.14950973,115890.0,115880.0,0.02504768]
[1752199449765,1.15050973,115890.0,115880.0,0.02604768]
[1752199454436,1.0650798,115890.0,115880.0,0.02604768]
[1752199456685,1.0647598,115890.0,115880.0,0.02604768]
[1752199457752,0.79668724,115890.0,115880.0,0.02604768]
[1752199457983,1.0647598,115890.0,115880.0,0.02604768]
[1752199458199,0.79668724,115890.0,115880.0,0.02604768]
[1752199458407,1.0647598,115890.0,115880.0,0.02604768]
[1752199459451,1.15018973,115890.0,115880.0,0.02604768]
[1752199460118,1.15018973,115890.0,115880.0,0.001]
[1752199460327,1.15018973,115890.0,115880.0,0.02604768]
[1752199460726,0.79668724,115890.0,115880.0,0.02604768]
[1752199460932,1.0408598,115890.0,115880.0,0.02604768]
[1752199461925,1.0653598,115890.0,115880.0,0.001]
[1752199462538,1.0653598,115890.0,115880.0,0.02604768]
[1752199462746,1.49078973,115890.0,115880.0,0.02604768]
[1752199464854,1.4053598,115890.0,115880.0,0.02604768]
[1752199465756,1.3808598,115890.0,115880.0,0.02604768]
[1752199468051,1.4044598,115890.0,115880.0,0.02604768]
[1752199471297,1.3808598,115890.0,115880.0,0.02604768]
[1752199474787,1.4035598,115890.0,115880.0,0.02604768]
[1752199475749,1.48898973,115890.0,115880.0,0.02604768]
[1752199476289,1.4035598,115890.0,115880.0,0.02604768]
[1752199476495,1.3808598,115890.0,115880.0,0.02604768]
[1752199477254,1.3808598,115890.0,115880.0,0.001]
[1752199477834,1.4048598,115890.0,115880.0,0.001]
[1752199478040,1.4048598,115890.0,115880.0,0.01711889]
[1752199478249,1.49028973,115890.0,115880.0,0.01711889]
[1752199479014,1.75836229,115890.0,115880.0,0.04216657]
[1752199479196,1.75836229,115890.0,115880.0,0.01711889]
[1752199479680,1.78378674,115890.0,115880.0,0.01711889]
[1752199480179,1.78278674,115890.0,115880.0,0.01611889]
[1752199480379,1.78578674,115890.0,115880.0,0.01711889]
[1752199480681,1.78678674,115890.0,115880.0,0.01711889]
[1752199481048,1.51871418,115890.0,115880.0,0.01711889]
[1752199481882,1.51871418,115890.0,115880.0,0.01711864]
[1752199482691,1.78678674,115890.0,115880.0,0.01711864]
[1752199484504,1.78678674,115890.0,115880.0,0.01711472]
[1752199484928,1.25064162,115890.0,115880.0,0.01711472]
[1752199485149,1.78678674,115890.0,115880.0,0.01711472]
[1752199486977,0.58406264,115880.0,115870.0,0.10880276]
[1752199487208,1.16274506,115880.0,115870.0,0.10880276]
[1752199487433,1.00426506,115880.0,115870.0,0.10880276]
[1752199487649,1.02646257,115880.0,115870.0,0.15765044]
[1752199487860,0.28119257,115880.0,115870.0,0.451033]
[1752199488005,0.40113172,115880.0,115870.0,0.451033]
[1752199488447,0.28119257,115880.0,115870.0,0.451033]
[1752199488642,0.41567257,115880.0,115870.0,0.451033]
[1752199488850,0.75567257,115880.0,115870.0,0.451033]
[1752199489068,1.00567257,115880.0,115870.0,0.451033]
[1752199489270,0.66567257,115880.0,115870.0,0.451033]
[1752199489698,0.66567257,115880.0,115870.0,0.18296044]
[1752199489699,0.66867257,115880.0,115870.0,0.18296044]
[1752199489828,0.67067257,115880.0,115870.0,0.451033]
[1752199490022,0.66567257,115880.0,115870.0,0.18296044]
[1752199490265,0.74981753,115880.0,115870.0,0.18296044]
[1752199490471,0.75281753,115880.0,115870.0,0.18296044]
[1752199491040,0.66867257,115880.0,115870.0,0.18296044]
[1752199491864,1.01364257,115880.0,115870.0,0.18185044]
[1752199492067,1.28171513,115880.0,115870.0,0.18185044]
[1752199492269,1.28171513,115880.0,115870.0,0.15805044]
[1752199492673,1.28171513,115880.0,115870.0,0.13300276]
[1752199492848,1.36714506,115880.0,115870.0,0.15805044]
[1752199493550,1.36714506,115880.0,115870.0,0.13300276]
[1752199493715,1.36714506,115880.0,115870.0,0.15805044]
[1752199498941,1.0990725,115880.0,115870.0,0.15805044]
[1752199499240,1.36714506,115880.0,115870.0,0.15805044]
[1752199500901,1.28171513,115880.0,115870.0,0.18075044]
[1752199501092,1.01364257,115880.0,115870.0,0.18075044]
[1752199501596,0.87419257,115880.0,115870.0,0.18186044]
[1752199501796,1.00863257,115880.0,115870.0,0.18186044]
[1752199502656,1.0940625,115880.0,115870.0,0.18186044]
[1752199503093,1.0940625,115880.0,115870.0,0.19798777]
[1752199503457,1.0970825,115880.0,115870.0,0.19798777]
[1752199503668,1.0970825,115880.0,115870.0,0.19799111]
[1752199506238,1.01165257,115880.0,115870.0,0.19799361]
[1752199507052,0.66863257,115880.0,115870.0,0.19799361]
[1752199509206,0.67165257,115880.0,115870.0,0.19799361]
[1752199513686,0.67360257,115880.0,115870.0,0.19799361]
[1752199522088,1.30437513,115880.0,115870.0,0.14998361]
[1752199522335,1.1460325,115880.0,115870.0,0.14998361]
[1752199522687,1.41410506,115880.0,115870.0,0.14998361]
[1752199523306,1.41410506,115880.0,115870.0,0.12495854]
[1752199523546,1.43627572,115880.0,115870.0,0.12495854]
[1752199526134,1.43627572,115880.0,115870.0,0.12495396]
[1752199529009,1.83627572,115880.0,115870.0,0.12495396]
[1752199529430,1.81410506,115880.0,115870.0,0.12495396]
[1752199536578,1.81410506,115880.0,115870.0,0.12493678]
[1752199539817,0.48865085,115870.0,115860.0,0.0056398]
[1752199540022,0.79909071,115870.0,115860.0,0.03068748]
[1752199540628,0.79909071,115870.0,115860.0,0.0056398]
[1752199540825,1.04909071,115870.0,115860.0,0.03068748]
[1752199540987,1.04909071,115870.0,115860.0,0.0056398]
[1752199541193,0.96366078,115870.0,115860.0,0.03068748]
[1752199541600,0.83030078,115870.0,115860.0,0.0056398]
[1752199541805,0.96466078,115870.0,115860.0,0.03068748]
[1752199542573,0.96366078,115870.0,115860.0,0.03068748]
[1752199542717,0.96566078,115870.0,115860.0,0.03068748]
[1752199542907,1.05109071,115870.0,115860.0,0.03068748]
[1752199544494,1.05009071,115870.0,115860.0,0.03068748]
[1752199544663,1.05309071,115870.0,115860.0,0.03068748]
[1752199544872,1.05320872,115870.0,115860.0,0.03068748]
[1752199545861,1.05320872,115870.0,115860.0,0.0056398]
[1752199546081,1.05320872,115870.0,115860.0,0.03068748]
[1752199546287,1.05320872,115870.0,115860.0,0.0056398]
[1752199546472,1.05320872,115870.0,115860.0,0.03068748]
[1752199547238,1.05220872,115870.0,115860.0,0.03068748]
[1752199548591,1.05420872,115870.0,115860.0,0.0056398]
[1752199548789,1.05420872,115870.0,115860.0,0.03068748]
[1752199548988,1.05420872,115870.0,115860.0,0.0056398]
[1752199549399,0.96877879,115870.0,115860.0,0.03068748]
[1752199549870,0.94397879,115870.0,115860.0,0.03068748]
[1752199550410,0.67578822,115870.0,115860.0,0.03068748]
[1752199550613,0.94397879,115870.0,115860.0,0.03068748]
[1752199551864,0.94397879,115870.0,115860.0,0.04684777]
[1752199552070,1.02940872,115870.0,115860.0,0.04684777]
[1752199552691,1.02940872,115870.0,115860.0,0.02180009]
[1752199552897,1.02940872,115870.0,115860.0,0.04684777]
[1752199553060,1.02940872,115870.0,115860.0,0.02180009]
[1752199553500,1.02940872,115870.0,115860.0,0.04684777]
[1752199555919,1.02940872,115870.0,115860.0,0.02180009]
[1752199556131,1.02940872,115870.0,115860.0,0.04684777]
[1752199556942,1.05410872,115870.0,115860.0,0.04684777]
[1752199558930,1.05410872,115870.0,115860.0,0.04686557]
[1752199561073,0.78591815,115870.0,115860.0,0.04686557]
[1752199561274,0.94397879,115870.0,115860.0,0.04686557]
[1752199561848,0.94397879,115870.0,115860.0,0.0468654]
[1752199562123,0.67578822,115870.0,115860.0,0.0468654]
[1752199562407,0.94397879,115870.0,115860.0,0.0468654]
[1752199563042,0.67578822,115870.0,115860.0,0.0468654]
[1752199563256,0.89504872,115870.0,115860.0,0.0468654]
[1752199563473,0.54142822,115870.0,115860.0,0.0479754]
[1752199563699,0.53620822,115870.0,115860.0,0.36446597]
[1752199563872,1.27867879,115870.0,115860.0,0.0962754]
[1752199565190,1.01048822,115870.0,115860.0,0.0962754]
[1752199565436,1.27867879,115870.0,115860.0,0.0962754]
[1752199565645,0.87620822,115870.0,115860.0,0.0962754]
[1752199565867,1.01048822,115870.0,115860.0,0.36446597]
[1752199566943,1.01048822,115870.0,115860.0,0.0962754]
[1752199567371,1.09591815,115870.0,115860.0,0.0962754]
[1752199567590,1.36410872,115870.0,115860.0,0.0962754]
[1752199571329,1.27867879,115870.0,115860.0,0.0962754]
[1752199571549,0.87620822,115870.0,115860.0,0.36446597]
[1752199571777,0.255,115870.0,115860.0,0.63334654]
[1752199572444,0.253,115870.0,115860.0,0.63334654]
[1752199572695,0.253,115870.0,115860.0,0.69501821]
[1752199573097,0.253,115870.0,115860.0,0.6949847]
[1752199573576,0.25,115870.0,115860.0,0.6949847]
[1752199573784,0.251,115870.0,115860.0,0.6949847]
[1752199574002,0.251,115870.0,115860.0,0.96317527]
[1752199574212,0.251,115870.0,115860.0,0.96517527]
[1752199574213,0.25,115870.0,115860.0,0.96517527]
[1752199574426,0.25,115870.0,115860.0,0.9035036]
[1752199574652,0.251,115870.0,115860.0,0.9035036]
[1752199574861,0.001,115870.0,115860.0,0.71200868]
[1752199575533,0.001,115870.0,115860.0,0.63482981]
[1752199576187,0.07002204,115870.0,115860.0,0.63482981]
[1752199576451,0.07002204,115870.0,115860.0,0.56298128]
[1752199576873,0.07865173,115870.0,115860.0,0.83093024]
[1752199577083,0.07002204,115870.0,115860.0,0.50112085]
[1752199577332,0.07002204,115870.0,115860.0,0.56298122]
[1752199578308,0.07002204,115870.0,115860.0,0.83093018]
[1752199579320,0.07002204,115870.0,115860.0,0.69669018]
[1752199579524,0.08728157,115870.0,115860.0,0.83089018]
[1752199579840,0.07865173,115870.0,115860.0,0.83089018]
[1752199580038,0.07865173,115870.0,115860.0,0.69669018]
[1752199580244,0.08728157,115870.0,115860.0,0.6716425]
[1752199580447,0.08728157,115870.0,115860.0,0.29499226]
[1752199580608,0.001,115870.0,115860.0,0.83089018]
[1752199582001,0.001,115870.0,115860.0,0.69669018]
[1752199582203,0.001,115870.0,115860.0,0.83089018]
[1752199583945,0.001,115870.0,115860.0,0.29499226]
[1752199584100,0.001,115870.0,115860.0,0.83089018]
[1752199586218,0.001,115870.0,115860.0,0.91632011]
[1752199586416,0.001,115870.0,115860.0,0.85445974]
[1752199587044,0.25862894,115880.0,115870.0,0.07124768]
[1752199587244,0.25862894,115880.0,115870.0,0.41822936]
[1752199587451,0.25,115880.0,115870.0,0.41891936]
[1752199588276,0.23964834,115880.0,115870.0,0.41891936]
[1752199588509,0.23964834,115880.0,115870.0,0.42391936]
[1752199589290,0.23964834,115880.0,115870.0,0.43289077]
[1752199589711,0.251,115880.0,115870.0,0.43489077]
[1752199590171,0.251,115880.0,115870.0,0.43483723]
[1752199592343,0.251,115880.0,115870.0,0.56899723]
[1752199592939,0.251,115880.0,115870.0,0.65442716]
[1752199593186,0.251,115880.0,115870.0,0.59264885]
[1752199593388,0.251,115880.0,115870.0,0.66982772]
[1752199593933,0.001,115880.0,115870.0,0.59264885]
[1752199594134,0.001,115880.0,115870.0,0.56760117]
[1752199594322,0.001,115880.0,115870.0,0.59264885]
[1752199594527,0.001,115880.0,115870.0,0.32469989]
[1752199594728,0.001,115880.0,115870.0,0.59264885]
[1752199594937,0.001,115880.0,115870.0,0.32469989]
[1752199595349,0.001,115880.0,115870.0,0.59264885]
[1752199595557,0.001,115880.0,115870.0,0.66982772]
[1752199595760,0.001,115880.0,115870.0,0.66983732]
[1752199596145,0.001,115880.0,115870.0,0.59265845]
[1752199596400,0.001,115880.0,115870.0,1.27778628]
[1752199596620,0.25004962,115890.0,115880.0,0.0475]
[1752199596798,4.962e-05,115890.0,115880.0,0.7132434]
[1752199597130,4.962e-05,115890.0,115880.0,0.711776]
[1752199597336,4.962e-05,115890.0,115880.0,0.78895487]
[1752199597558,4.962e-05,115890.0,115880.0,1.12895487]
[1752199598020,9.62e-06,115890.0,115880.0,1.13095487]
[1752199598273,0.30868247,115910.0,115880.0,1.11240561]
[1752199598503,0.2500497,115910.0,115900.0,0.14968338]
[1752199598727,0.2500497,115910.0,115900.0,0.7882217]
[1752199598940,0.2500497,115910.0,115900.0,1.1289117]
[1752199598941,4.97e-05,115910.0,115900.0,1.1289117]
[1752199599147,4.97e-05,115910.0,115900.0,0.78372704]
[1752199599408,4.97e-05,115910.0,115900.0,0.91852704]
[1752199599581,4.97e-05,115910.0,115900.0,1.26366046]
[1752199599846,4.97e-05,115910.0,115900.0,0.65057808]
[1752199600066,0.0010497,115910.0,115900.0,1.186476]
[1752199600485,0.0010497,115910.0,115900.0,1.16142832]
[1752199600691,0.0010497,115910.0,115900.0,1.35903855]
[1752199600896,0.00771198,115970.0,115960.0,0.02504768]
[1752199601113,0.01842423,115970.0,115960.0,0.17810815]
[1752199601330,0.02717534,115970.0,115960.0,0.44605711]
[1752199601497,0.02717534,115970.0,115960.0,0.17810815]
[1752199601498,0.03579796,115970.0,115960.0,0.17810815]
[1752199601748,0.11344277,115970.0,115960.0,0.44605711]
[1752199601951,0.36344277,115970.0,115960.0,0.17810815]
[1752199602155,0.34619738,115970.0,115960.0,0.17810815]
[1752199602627,0.2599307,115970.0,115960.0,0.17810815]
[1752199602873,0.2578407,115970.0,115960.0,0.47046711]
[1752199603106,0.2546307,115970.0,115960.0,0.22731815]
[1752199603314,0.2599307,115970.0,115960.0,0.20140815]
[1752199603522,0.2629307,115970.0,115960.0,0.20140815]
[1752199603742,0.28879781,115970.0,115960.0,0.20140815]
[1752199603978,0.27155295,115970.0,115960.0,0.20140815]
[1752199604203,0.34057506,115970.0,115960.0,0.16328768]
[1752199604430,0.2876307,115970.0,115960.0,0.17932818]
[1752199604658,0.2608407,115970.0,115960.0,0.47414305]
[1752199604873,0.2576307,115970.0,115960.0,0.20403818]
[1752199605083,0.2576307,115970.0,115960.0,0.47198714]
[1752199605516,0.28017556,115970.0,115960.0,0.20316818]
[1752199605728,0.28017549,115970.0,115960.0,0.17956818]
[1752199605947,0.28879811,115970.0,115960.0,0.04108818]
[1752199606174,0.37806561,115970.0,115960.0,0.18056818]
[1752199606886,0.8319464,115970.0,115960.0,0.04208818]
[1752199607125,1.23502692,115970.0,115960.0,0.04208818]
[1752199607336,1.21921633,115970.0,115960.0,0.04208818]
[1752199611122,1.15019429,115970.0,115960.0,0.04208818]
[1752199611734,0.88224533,115970.0,115960.0,0.04208818]
[1752199611935,1.15019429,115970.0,115960.0,0.04208818]
[1752199614997,0.88224533,115970.0,115960.0,0.04208818]
[1752199615265,1.15019429,115970.0,115960.0,0.04208818]
[1752199615825,0.88224533,115970.0,115960.0,0.04208818]
[1752199616011,1.15019429,115970.0,115960.0,0.04208818]
[1752199616220,1.49019429,115970.0,115960.0,0.0170405]
[1752199616451,1.49019429,115970.0,115960.0,0.04208818]
[1752199616714,1.49019429,115970.0,115960.0,0.0170405]
[1752199618096,1.49019429,115970.0,115960.0,0.001]
[1752199618909,1.49019429,115970.0,115960.0,0.02604768]
[1752199619126,1.22224533,115970.0,115960.0,0.02604768]
[1752199619331,1.49019429,115970.0,115960.0,0.02604768]
[1752199619712,1.53647125,115970.0,115960.0,0.02604768]
[1752199620453,1.53647125,115970.0,115960.0,0.001]
[1752199620928,1.53647125,115970.0,115960.0,0.02604768]
[1752199621844,1.53647125,115970.0,115960.0,0.001]
[1752199622264,1.53647125,115970.0,115960.0,0.02604768]
[1752199623059,1.53647125,115970.0,115960.0,0.001]
[1752199623262,1.53647125,115970.0,115960.0,0.02604768]
[1752199623464,1.53647125,115970.0,115960.0,0.001]
[1752199623671,1.26852229,115970.0,115960.0,0.02604768]
[1752199623894,1.26852229,115970.0,115960.0,0.001]
[1752199623895,1.53647125,115970.0,115960.0,0.001]
[1752199624049,1.53647125,115970.0,115960.0,0.02604768]
[1752199624534,1.53647125,115970.0,115960.0,0.001]
[1752199624735,1.53647125,115970.0,115960.0,0.02604768]
[1752199625623,1.53647125,115970.0,115960.0,0.001]
[1752199625822,1.53647125,115970.0,115960.0,0.02604768]
[1752199626024,1.53647125,115970.0,115960.0,0.001]
[1752199626639,1.53647125,115970.0,115960.0,0.02604768]
[1752199627256,1.53647125,115970.0,115960.0,0.001]
[1752199627461,1.53647125,115970.0,115960.0,0.02604768]
[1752199627671,1.53647125,115970.0,115960.0,0.001]
[1752199628911,1.93647125,115970.0,115960.0,0.001]
[1752199629117,1.66852229,115970.0,115960.0,0.001]
[1752199629366,1.93647125,115970.0,115960.0,0.001]
[1752199630351,2.20442021,115970.0,115960.0,0.001]
[1752199630514,1.82189264,115970.0,115960.0,1e-08]
[1752199631788,1.81889264,115970.0,115960.0,1e-08]
[1752199631972,1.5240875,115970.0,115960.0,1e-08]
[1752199632179,1.50966672,115970.0,115960.0,1e-08]
[1752199634259,0.18976915,115930.0,115920.0,0.0254]
[1752199634476,0.81940804,115930.0,115920.0,0.0254]
[1752199634686,0.55145908,115930.0,115920.0,0.0254]
[1752199634866,0.55440908,115930.0,115920.0,0.0254]
[1752199635064,0.55440908,115930.0,115920.0,0.05044768]
[1752199635267,0.55440908,115930.0,115920.0,0.07364768]
[1752199635476,0.56319309,115930.0,115920.0,0.07364768]
[1752199635679,0.56319309,115930.0,115920.0,0.07464768]
[1752199635909,1.08214205,115930.0,115920.0,0.001]
[1752199636114,1.16757198,115930.0,115920.0,0.02604768]
[1752199636535,1.19237198,115930.0,115920.0,0.001]